Workbook

Sheet PP PM (2)
B3: Pagos Provisionales de las PM Sociedades Mercantiles
B5: Concepto
B7: Los pagos provisionales de ISR de personas morales se calculan y enteran mensualmente, aplicando a los ingresos nominales, correspondientes al periodo que abarca desde el inicio del ejercicio hasta el mes de que se trate, el coeficiente de utilidad obtenido en cualquier ejercicio de 12 meses de los últimos cinco años, considerando el mas reciente de ellos y posteriormente la tasa de impuesto que esté vigente en el año de que se trate. En su caso se podrá restar de la utilidad fiscal estimada las pérdidas fiscales pendientes de aplicarse. Los pagos provisionales se enterarán a más tardar el día 17 del mes inmediato posterior al que corresponda el pago provisional, contra el impuesto determinado en el periodo, se podrán acreditar los pagos provisionales del mismo ejercicio, efectuados con anterioridad y las retenciones por cobro de intereses en el mismo periodo.
B9: Coeficiente | C9: Utilidad Fiscal | F9: 290.00
B10: de = | F10: = | G10: =+TRUNC(F9/F11,4) -> 0.1567
B11: Utilidad | C11: Ingresos Nominales | F11: 1,850.00
B14: Concepto
B15: Ingresos nominales del periodo | F15: 302,000.00
A16: Por (x) | B16: Coeficiente de utilidad | F16: 0.1567
A17: Igual (=) | B17: Utilidad fiscal estimada | F17: =+F15*F16 -> 47,323.40
A18: Menos (-) | B18: Pérdidas fiscales pendiente de aplicar | F18: 22,000.00
A19: Igual (=) | B19: Resultado fiscal estimado | F19: =+F17-F18 -> 25,323.40
A20: Por (x) | B20: Tasa de impuesto | F20: 30%
A21: Igual (=) | B21: Pago provisional | F21: =+F19*F20 -> 7,597.02
A22: Menos (-) | B22: Pagos provisionales anteriores | F22: 5,860.00
A23: Menos (-) | B23: Retenciones del sistema financiero | F23: 850.00
A24: Igual (=) | B24: Cantidad a enterar | F24: =+F21-F22-F23 -> 887.02
B26: Notas:
A28: 1 | B28: Respecto a los ingresos que se deben utilizar para calcular los pagos provisionales, se debe tomar en cuenta :
B29: a) Los ingresos nominales del periodo, serán los ingresos acumulables obtenidos desde el inicio del ejercicio
B30: y hasta el último día del mes por el que se calcule el pago provisional
B31: b) En el caso de créditos u operaciones denominados en unidades de inversión (UDIS), se consideraran ingresos
B32: nominales los intereses conforme se devenguen, incluyendo el ajuste correspondiente al principal.
B33: c) Para calcular los pagos provisionales no se deben considerar los siguientes ingresos:
B34: Los provenientes de fuente de riqueza ubicada en el extranjero que hayan sido objeto de retención de ISR
B35: Los atribuibles a establecimientos ubicados en el extranjero que sean propiedad de la PM, cuando los ingresos
B36: estén sujetos al pago del ISR en el país en el que se encuentren ubicados dichos establecimientos
A37: 2 | B37: El coeficiente de utilidad se calculará hasta el diezmilésimo.
A38: 3 | B38: Las personas morales del régimen general de la LISR podrán disminuir de la utilidad fiscal determinada, el monto
B39: de la PTU pagada en el mismo ejercicio. El monto de la PTU se disminuirá por partes iguales, en los pagos
B40: provisionales de mayo a diciembre del ejercicio, de manera acumulativa.
A41: 4 | B41: Durante el ejercicio de 2021, la tasa que se empleará para calcular los pagos provisionales de ISR será del 30%
B43: Fundamento Legal
B45: Art. 14 ISR Pagos Provisionales Mensuales
B46: Art. 10 Reglam ISR Coeficientes al Diezmilésimo
B47: Art. 14 II a) PTU en Pagos Provisionales
B48: Art. 14 Reglam Autorización para disminuir Pagos Provisionales
B51: Practica
B53: CALCULO PAGOS PROVISIONALES ISR - 2021
B54: Perdidas de Ejercicios Anteriores | F54: 242,662.63
B55: PTU pagada | F55: 270,000.00
F57: ENERO | G57: FEBRERO | H57: MARZO | I57: ABRIL | J57: MAYO | K57: JUNIO | L57: JULIO | M57: AGOSTO | N57: SEPTIEMBRE | O57: OCTUBRE | P57: NOVIEMBRE | Q57: DICIEMBRE | R57: TOTAL
B59: Ventas | F59: 775,420.00 | G59: 852,460.00 | H59: 1,025,630.00 | I59: 1,030,425.00 | J59: 978,450.00 | K59: 858,790.00 | L59: 936,450.00 | M59: 789,630.00 | N59: 767,470.00 | O59: 897,450.00 | P59: 1,050,600.00 | Q59: 1,035,630.00 | R59: =SUM(F59:Q59) -> 10,998,405.00
B60: Intereses | F60: 1,520.00 | G60: 1,360.00 | H60: 2,150.00 | I60: 1,340.00 | J60: 980.00 | K60: 870.00 | L60: 1,025.00 | M60: 960.00 | N60: 897.00 | O60: 902.00 | P60: 1,060.00 | Q60: 1,240.00 | R60: =SUM(F60:Q60) -> 14,304.00
B61: Venta Activo | F61: 0 | G61: 0 | H61: 0 | I61: 0 | J61: 0 | K61: 0 | L61: 0 | M61: 0 | N61: 0 | O61: 0 | P61: 0 | Q61: 0 | R61: =SUM(F61:Q61) -> 0
B62: Recuperación de Seguros | F62: 0 | G62: 0 | H62: 0 | I62: 0 | J62: 340,500.00 | K62: 0 | L62: 0 | M62: 0 | N62: 0 | O62: 0 | P62: 0 | Q62: 0 | R62: =SUM(F62:Q62) -> 340,500.00
A64: Igual (=) | B64: INGRESOS NOMINALES DEL MES | F64: =SUM(F59:F63) -> 776,940.00 | G64: =SUM(G59:G63) -> 853,820.00 | H64: 1,027,780.00 | I64: 1,031,765.00 | J64: =SUM(J59:J63) -> 1,319,930.00 | K64: 859,660.00 | L64: 937,475.00 | M64: 790,590.00 | N64: 768,367.00 | O64: 898,352.00 | P64: 1,051,660.00 | Q64: 1,036,870.00 | R64: 11,353,209.00
B66: INGRESOS NOMINALES DEL PERIODO | F66: =+F64 -> 776,940.00 | G66: =+F66+G64 -> 1,630,760.00 | H66: =+G66+H64 -> 2,658,540.00 | I66: =+H66+I64 -> 3,690,305.00 | J66: =+I66+J64 -> 5,010,235.00 | K66: =+J66+K64 -> 5,869,895.00 | L66: 6,807,370.00 | M66: 7,597,960.00 | N66: 8,366,327.00 | O66: 9,264,679.00 | P66: 10,316,339.00 | Q66: =+P66+Q64 -> 11,353,209.00
A68: Por (x) | B68: COEFICIENTE DE UTILIDAD | F68: 0.0522 | G68: 0.0522 | H68: 0.0669 | I68: 0.0669 | J68: 0.0669 | K68: 0.0669 | L68: 0.0669 | M68: 0.0669 | N68: 0.0669 | O68: 0.0669 | P68: 0.0669 | Q68: 0.0669
A70: Igual (=) | B70: UTILIDAD FISCAL ESTIMADA | F70: =+F66*F68 -> 40,556.27 | G70: =+G66*G68 -> 85,125.67 | H70: 177,856.33 | I70: 246,881.40 | J70: =+J66*J68 -> 335,184.72 | K70: 392,695.98 | L70: 455,413.05 | M70: 508,303.52 | N70: 559,707.28 | O70: 619,807.03 | P70: 690,163.08 | Q70: 759,529.68
A72: Menos (-) | B72: PTU PAGADA | F72: 0 | J72: =+F55/8*1 -> 33,750.00 | K72: =+F55/8*2 -> 67,500.00 | L72: =+F55/8*3 -> 101,250.00 | M72: =+F55/8*4 -> 135,000.00 | N72: =+F55/8*5 -> 168,750.00 | O72: =+F55/8*6 -> 202,500.00 | P72: =+F55/8*7 -> 236,250.00 | Q72: =+F55/8*8 -> 270,000.00
A74: Menos (-) | B74: PERDIDAS EJERCICIOS ANTERIORES | F74: =IF($F54>=F70-F72,F70-F72,$F54) -> 40,556.27 | G74: =IF($F54>=G70-G72,G70-G72,$F54) -> 85,125.67 | H74: =IF($F54>=H70-H72,H70-H72,$F54) -> 177,856.33 | I74: =IF($F54>=I70-I72,I70-I72,$F54) -> 242,662.63 | J74: 242,662.63 | K74: 242,662.63 | L74: 242,662.63 | M74: 242,662.63 | N74: 242,662.63 | O74: 242,662.63 | P74: 242,662.63 | Q74: 242,662.63
A76: Igual (=) | B76: BASE PAGO PROVISIONAL | F76: =+F70-F72-F74 -> 0 | G76: =+G70-G72-G74 -> 0 | H76: 0 | I76: 4,218.77 | J76: =+J70-J72-J74 -> 58,772.09 | K76: 82,533.35 | L76: 111,500.42 | M76: 130,640.89 | N76: 148,294.65 | O76: 174,644.40 | P76: 211,250.45 | Q76: 246,867.05 | R76: 1,087,600.00
A77: Por (x) | B77: TASA DE IMPUESTO | F77: 30% | G77: 30% | H77: 30% | I77: 30% | J77: 30% | K77: 30% | L77: 30% | M77: 30% | N77: 30% | O77: 30% | P77: 30% | Q77: 30%
A79: Igual (=) | B79: ISR CAUSADO DEL PERIODO | F79: =+F76*F77 -> 0 | G79: =+G76*G77 -> 0 | H79: 0 | I79: 1,265.63 | J79: 17,631.63 | K79: 24,760.00 | L79: 33,450.13 | M79: 39,192.27 | N79: 44,488.39 | O79: 52,393.32 | P79: 63,375.13 | Q79: 74,060.12 | R79: 0
A81: Menos (-) | B81: RETENCION ISR (BANCOS) ACUMULADO | F81: 22.34 | G81: 42.33 | H81: 73.94 | I81: 93.64 | J81: 108.04 | K81: 120.83 | L81: 135.90 | M81: 150.01 | N81: 163.20 | O81: 176.45 | P81: 192.04 | Q81: 210.26
A82: Menos (-) | B82: PAGOS PROV. ANTERIORES | F82: 0 | G82: =+F84 -> 0 | H82: =+F84+G84 -> 0 | I82: =+F84+G84+H84 -> 0 | J82: =+F84+G84+H84+I84 -> 1,172.00 | K82: =+F84+G84+H84+I84+J84 -> 17,523.59 | L82: =+F84+G84+H84+I84+J84+K84 -> 24,639.17 | M82: =F84+G84+H84+I84+J84+K84+L84 -> 33,314.23 | N82: =+F84+G84+H84+I84+J84+K84+L84+M84 -> 39,042.26 | O82: =+F84+G84+H84+I84+J84+K84+L84+M84+N84 -> 44,325.20 | P82: =+F84+G84+H84+I84+J84+K84+L84+M84+N84+O84 -> 52,216.86 | Q82: =+F84+G84+H84+I84+J84+K84+L84+M84+N84+O84+P84 -> 63,183.10 | R82: 0
A84: Igual (=) | B84: MONTO PAGO PROVISIONAL ISR | F84: =IF(+F79-F81-F82>=0,+F79-F81-F82,0) -> 0 | G84: =IF(+G79-G81-G82>=0,+G79-G81-G82,0) -> 0 | H84: 0 | I84: 1,172.00 | J84: =IF(+J79-J81-J82>=0,+J79-J81-J82,0) -> 16,351.59 | K84: =IF(+K79-K81-K82>=0,+K79-K81-K82,0) -> 7,115.59 | L84: =IF(+L79-L81-L82>=0,+L79-L81-L82,0) -> 8,675.06 | M84: 5,728.03 | N84: 5,282.94 | O84: 7,891.67 | P84: 10,966.23 | Q84: 10,666.75 | R84: =SUM(F84:Q84) -> 73,849.85
A86: Menos (-) | B86: SUBSIDIO AL EMPLEO | F86: 0 | G86: 0 | H86: 0 | I86: 0 | J86: 6,700.00 | K86: 1,400.00 | L86: 1,500.00 | M86: 1,600.00 | N86: 1,200.00 | O86: 1,200.00 | P86: 1,200.00 | Q86: 1,500.00 | R86: =SUM(F86:Q86) -> 16,300.00
A88: Igual (=) | B88: PAGO PROVISIONALES ISR A ENTERAR | F88: =IF(+F84-F86>=0,F84-F86,0) -> 0 | G88: =IF(+G84-G86>=0,G84-G86,0) -> 0 | H88: 0 | I88: =IF(+I84-I86>=0,I84-I86,0) -> 1,172.00 | J88: =IF(+J84-J86>=0,J84-J86,0) -> 9,651.59 | K88: 5,715.59 | L88: 7,175.06 | M88: 4,128.03 | N88: 4,082.94 | O88: 6,691.67 | P88: 9,766.23 | Q88: =IF(+Q84-Q86>=0,Q84-Q86,0) -> 9,166.75 | R88: 57,549.85
